[Event "Titled Tuesday Blitz September 27 Early 2022"]
[White "Ravi, Teja S."]
[Black "Player, Edmund C"]
[WhiteFideId "5017220"]
[BlackFideId "406520"]
[WhiteElo "2432"]
[BlackElo "2092"]
[Result "1-0"]
[Round "03"]
[TimeControl "180+1"]
[Date "2022.09.27"]
[WhiteClock "0:00:23"]
[BlackClock "0:00:13"]

1. d4 {[%clk 0:02:54]}  Nf6 {[%clk 0:02:55]} 2. Nf3 {[%clk 0:02:54]}  d5 {[%clk 0:02:54]} 3. Bf4 {[%clk 0:02:55]}  c5 {[%clk 0:02:52]} 4. e3 {[%clk 0:02:55]}  Qb6 {[%clk 0:02:50]} 5. Nc3 {[%clk 0:02:52]}  Bf5 {[%clk 0:02:18]} 6. Nb5 {[%clk 0:02:45]}  Na6 {[%clk 0:02:17]} 7. a4 {[%clk 0:02:42]}  Rc8 {[%clk 0:02:06]} 8. a5 {[%clk 0:02:40]}  Qd8 {[%clk 0:01:56]} 9. Nxa7 {[%clk 0:02:41]}  Ra8 {[%clk 0:01:49]} 10. Nb5 {[%clk 0:02:26]}  Nh5 {[%clk 0:01:49]} 11. Bg5 {[%clk 0:02:12]}  Nb4 {[%clk 0:01:40]} 12. Bd3 {[%clk 0:01:23]}  Nxd3+ {[%clk 0:01:24]} 13. cxd3 {[%clk 0:01:24]}  Rxa5 {[%clk 0:01:21]} 14. Nc3 {[%clk 0:01:16]}  Rxa1 {[%clk 0:01:09]} 15. Qxa1 {[%clk 0:01:16]}  h6 {[%clk 0:00:55]} 16. Bh4 {[%clk 0:01:01]}  g5 {[%clk 0:00:53]} 17. Bg3 {[%clk 0:00:59]}  Nxg3 {[%clk 0:00:53]} 18. hxg3 {[%clk 0:01:00]}  Bg7 {[%clk 0:00:39]} 19. dxc5 {[%clk 0:00:57]}  Bxd3 {[%clk 0:00:36]} 20. Qa4+ {[%clk 0:00:57]}  Kf8 {[%clk 0:00:34]} 21. Qd1 {[%clk 0:00:54]}  Bc4 {[%clk 0:00:31]} 22. Nd4 {[%clk 0:00:50]}  e6 {[%clk 0:00:27]} 23. Qf3 {[%clk 0:00:50]}  Be5 {[%clk 0:00:26]} 24. Nxe6+ {[%clk 0:00:49]}  Ke7 {[%clk 0:00:24]} 25. Nxd8 {[%clk 0:00:49]}  Rxd8 {[%clk 0:00:25]} 26. Rxh6 {[%clk 0:00:47]}  Ra8 {[%clk 0:00:24]} 27. Nxd5+ {[%clk 0:00:43]}  Kf8 {[%clk 0:00:23]} 28. Qf5 {[%clk 0:00:30]}  Bxb2 {[%clk 0:00:20]} 29. Rh7 {[%clk 0:00:24]}  Ra1+ {[%clk 0:00:18]} 30. Kd2 {[%clk 0:00:24]}  f6 {[%clk 0:00:13]} 31. Qc8# {[%clk 0:00:23]} 1-0


[Site "https://www.chess.com"]

[Event "Titled Tuesday Blitz September 27 Early 2022"]
[White "Ronka, Erik"]
[Black "Babazada, Khazar"]
[WhiteFideId "505080"]
[BlackFideId "13413554"]
[WhiteElo "2264"]
[BlackElo "2409"]
[Result "1/2-1/2"]
[Round "03"]
[TimeControl "180+1"]
[Date "2022.09.27"]
[WhiteClock "0:00:10"]
[BlackClock "0:01:20"]

1. e4 {[%clk 0:03:00]}  e6 {[%clk 0:02:58]} 2. d4 {[%clk 0:03:00]}  d5 {[%clk 0:02:58]} 3. Nc3 {[%clk 0:03:01]}  Bb4 {[%clk 0:02:55]} 4. e5 {[%clk 0:03:01]}  c5 {[%clk 0:02:55]} 5. a3 {[%clk 0:03:02]}  Bxc3+ {[%clk 0:02:55]} 6. bxc3 {[%clk 0:03:03]}  Ne7 {[%clk 0:02:56]} 7. Qg4 {[%clk 0:03:03]}  Qc7 {[%clk 0:02:54]} 8. Qxg7 {[%clk 0:03:03]}  Rg8 {[%clk 0:02:55]} 9. Qxh7 {[%clk 0:03:03]}  cxd4 {[%clk 0:02:56]} 10. Qd3 {[%clk 0:03:04]}  dxc3 {[%clk 0:02:50]} 11. Ne2 {[%clk 0:03:04]}  Nbc6 {[%clk 0:02:50]} 12. Qxc3 {[%clk 0:02:52]}  Bd7 {[%clk 0:02:46]} 13. f4 {[%clk 0:02:52]}  Nf5 {[%clk 0:02:43]} 14. g3 {[%clk 0:02:45]}  Rc8 {[%clk 0:02:42]} 15. Qd3 {[%clk 0:02:25]}  a6 {[%clk 0:02:26]} 16. Bh3 {[%clk 0:02:24]}  Nce7 {[%clk 0:02:24]} 17. c3 {[%clk 0:02:03]}  Bb5 {[%clk 0:02:23]} 18. Qd2 {[%clk 0:02:04]}  Bxe2 {[%clk 0:02:22]} 19. Kxe2 {[%clk 0:02:05]}  Qxc3 {[%clk 0:02:18]} 20. Qxc3 {[%clk 0:02:01]}  Rxc3 {[%clk 0:02:19]} 21. Bd2 {[%clk 0:01:56]}  Rc4 {[%clk 0:02:19]} 22. Bg2 {[%clk 0:01:52]}  Kd7 {[%clk 0:02:19]} 23. Rhc1 {[%clk 0:01:49]}  b5 {[%clk 0:02:16]} 24. a4 {[%clk 0:01:41]}  Nd4+ {[%clk 0:02:13]} 25. Kd1 {[%clk 0:01:39]}  Nb3 {[%clk 0:02:13]} 26. Rxc4 {[%clk 0:01:38]}  bxc4 {[%clk 0:02:14]} 27. Rb1 {[%clk 0:01:37]}  Nf5 {[%clk 0:02:13]} 28. Bf1 {[%clk 0:01:27]}  Rh8 {[%clk 0:02:12]} 29. g4 {[%clk 0:01:15]}  Nxd2 {[%clk 0:02:04]} 30. Kxd2 {[%clk 0:01:09]}  Rxh2+ {[%clk 0:02:05]} 31. Kc3 {[%clk 0:01:08]}  Ng3 {[%clk 0:02:01]} 32. Bxc4 {[%clk 0:01:00]}  dxc4 {[%clk 0:01:59]} 33. Rb7+ {[%clk 0:01:01]}  Kc6 {[%clk 0:01:59]} 34. Rxf7 {[%clk 0:01:00]}  Ra2 {[%clk 0:01:55]} 35. Kxc4 {[%clk 0:00:45]}  Rxa4+ {[%clk 0:01:54]} 36. Kb3 {[%clk 0:00:44]}  Re4 {[%clk 0:01:54]} 37. g5 {[%clk 0:00:29]}  Nf5 {[%clk 0:01:52]} 38. g6 {[%clk 0:00:28]}  Re3+ {[%clk 0:01:49]} 39. Kc4 {[%clk 0:00:26]}  Rg3 {[%clk 0:01:46]} 40. Rf6 {[%clk 0:00:25]}  Kd7 {[%clk 0:01:47]} 41. Rf7+ {[%clk 0:00:24]}  Ke8 {[%clk 0:01:43]} 42. Rf6 {[%clk 0:00:21]}  Ng7 {[%clk 0:01:43]} 43. f5 {[%clk 0:00:14]}  Rg5 {[%clk 0:01:30]} 44. fxe6 {[%clk 0:00:06]}  Rxe5 {[%clk 0:01:31]} 45. Rf7 {[%clk 0:00:06]}  Nxe6 {[%clk 0:01:29]} 46. Ra7 {[%clk 0:00:07]}  a5 {[%clk 0:01:19]} 47. g7 {[%clk 0:00:07]}  Rg5 {[%clk 0:01:19]} 48. g8=Q+ {[%clk 0:00:07]}  Rxg8 {[%clk 0:01:20]} 49. Ra8+ {[%clk 0:00:07]}  Nd8 {[%clk 0:01:20]} 50. Rxa5 {[%clk 0:00:06]}  Kd7 {[%clk 0:01:21]} 51. Rd5+ {[%clk 0:00:06]}  Ke6 {[%clk 0:01:21]} 52. Rd4 {[%clk 0:00:07]}  Nb7 {[%clk 0:01:19]} 53. Re4+ {[%clk 0:00:07]}  Kf5 {[%clk 0:01:19]} 54. Re1 {[%clk 0:00:08]}  Nd6+ {[%clk 0:01:19]} 55. Kd5 {[%clk 0:00:09]}  Nb5 {[%clk 0:01:19]} 56. Rf1+ {[%clk 0:00:09]}  Kg6 {[%clk 0:01:19]} 57. Rg1+ {[%clk 0:00:10]}  Kf7 {[%clk 0:01:19]} 58. Rxg8 {[%clk 0:00:10]}  Kxg8 {[%clk 0:01:20]} 1/2-1/2


[Site "https://www.chess.com"]

[Event "Titled Tuesday Blitz September 27 Early 2022"]
[White "Roque Sola, Jose Luis"]
[Black "Matinian, Nikita"]
[WhiteFideId "5120390"]
[BlackFideId "24129100"]
[WhiteElo "1990"]
[BlackElo "2422"]
[Result "0-1"]
[Round "03"]
[TimeControl "180+1"]
[Date "2022.09.27"]
[WhiteClock "0:00:14"]
[BlackClock "0:02:13"]

1. c4 {[%clk 0:03:00]}  e5 {[%clk 0:02:59]} 2. Nc3 {[%clk 0:02:59]}  Nf6 {[%clk 0:02:58]} 3. Nf3 {[%clk 0:02:59]}  Nc6 {[%clk 0:02:59]} 4. g3 {[%clk 0:02:59]}  Bb4 {[%clk 0:02:53]} 5. d3 {[%clk 0:02:50]}  e4 {[%clk 0:02:51]} 6. Ng5 {[%clk 0:02:26]}  exd3 {[%clk 0:02:41]} 7. exd3 {[%clk 0:02:27]}  O-O {[%clk 0:02:41]} 8. Bg2 {[%clk 0:02:11]}  Re8+ {[%clk 0:02:41]} 9. Be3 {[%clk 0:02:02]}  d5 {[%clk 0:02:40]} 10. cxd5 {[%clk 0:01:40]}  Nxd5 {[%clk 0:02:34]} 11. Bxd5 {[%clk 0:00:51]}  Bxc3+ {[%clk 0:02:30]} 12. bxc3 {[%clk 0:00:46]}  Qxd5 {[%clk 0:02:29]} 13. Qh5 {[%clk 0:00:46]}  Qxh1+ {[%clk 0:02:14]} 14. Kd2 {[%clk 0:00:46]}  Qd5 {[%clk 0:02:14]} 15. Qxh7+ {[%clk 0:00:45]}  Kf8 {[%clk 0:02:14]} 16. Re1 {[%clk 0:00:14]}  Qxa2+ {[%clk 0:02:13]} 0-1


[Site "https://www.chess.com"]

[Event "Titled Tuesday Blitz September 27 Early 2022"]
[White "Runets, Ivan"]
[Black "Hambleton, Aman"]
[WhiteFideId "13511564"]
[BlackFideId "2606577"]
[WhiteElo "1962"]
[BlackElo "2538"]
[Result "0-1"]
[Round "03"]
[TimeControl "180+1"]
[Date "2022.09.27"]
[WhiteClock "0:00:06"]
[BlackClock "0:00:06"]

1. d4 {[%clk 0:03:00]}  Nf6 {[%clk 0:02:59]} 2. c4 {[%clk 0:03:00]}  e6 {[%clk 0:02:59]} 3. Nc3 {[%clk 0:02:59]}  Bb4 {[%clk 0:02:59]} 4. e3 {[%clk 0:02:59]}  O-O {[%clk 0:02:57]} 5. Bd3 {[%clk 0:02:59]}  c5 {[%clk 0:02:44]} 6. Ne2 {[%clk 0:02:56]}  b6 {[%clk 0:02:31]} 7. O-O {[%clk 0:02:49]}  Bb7 {[%clk 0:02:30]} 8. d5 {[%clk 0:02:43]}  exd5 {[%clk 0:01:58]} 9. cxd5 {[%clk 0:02:22]}  Re8 {[%clk 0:01:39]} 10. e4 {[%clk 0:02:19]}  d6 {[%clk 0:01:37]} 11. Bg5 {[%clk 0:02:03]}  h6 {[%clk 0:01:27]} 12. Bh4 {[%clk 0:02:03]}  a6 {[%clk 0:01:21]} 13. a4 {[%clk 0:02:02]}  Nbd7 {[%clk 0:01:19]} 14. f3 {[%clk 0:01:53]}  Ne5 {[%clk 0:01:14]} 15. Bc2 {[%clk 0:01:45]}  Ng6 {[%clk 0:01:04]} 16. Bf2 {[%clk 0:01:44]}  Bc8 {[%clk 0:00:42]} 17. Qc1 {[%clk 0:01:42]}  Bd7 {[%clk 0:00:38]} 18. Nf4 {[%clk 0:01:20]}  Ne5 {[%clk 0:00:22]} 19. Nd3 {[%clk 0:01:18]}  Nxd3 {[%clk 0:00:21]} 20. Bxd3 {[%clk 0:01:19]}  Qc7 {[%clk 0:00:20]} 21. Bh4 {[%clk 0:01:10]}  Nh7 {[%clk 0:00:15]} 22. Qc2 {[%clk 0:01:07]}  Nf8 {[%clk 0:00:13]} 23. Bg3 {[%clk 0:00:59]}  Bxc3 {[%clk 0:00:04]} 24. Qxc3 {[%clk 0:00:58]}  b5 {[%clk 0:00:03]} 25. b3 {[%clk 0:00:54]}  Qb6 {[%clk 0:00:02]} 26. Bf2 {[%clk 0:00:52]}  Qb7 {[%clk 0:00:03]} 27. Bc2 {[%clk 0:00:47]}  Ng6 {[%clk 0:00:03]} 28. b4 {[%clk 0:00:46]}  cxb4 {[%clk 0:00:01]} 29. Qxb4 {[%clk 0:00:46]}  Rec8 {[%clk 0:00:02]} 30. Bd3 {[%clk 0:00:44]}  Ne5 {[%clk 0:00:01]} 31. Be2 {[%clk 0:00:44]}  Nc4 {[%clk 0:00:02]} 32. Rfc1 {[%clk 0:00:41]}  a5 {[%clk 0:00:02]} 33. Qb3 {[%clk 0:00:31]}  Rab8 {[%clk 0:00:02]} 34. axb5 {[%clk 0:00:30]}  Bxb5 {[%clk 0:00:02]} 35. Rab1 {[%clk 0:00:19]}  Qa6 {[%clk 0:00:02]} 36. Bxc4 {[%clk 0:00:18]}  Bxc4 {[%clk 0:00:02]} 37. Qxb8 {[%clk 0:00:19]}  Rxb8 {[%clk 0:00:03]} 38. Rxb8+ {[%clk 0:00:19]}  Kh7 {[%clk 0:00:04]} 39. Rb6 {[%clk 0:00:19]}  Qc8 {[%clk 0:00:01]} 40. Rc6 {[%clk 0:00:18]}  Qb7 {[%clk 0:00:02]} 41. R6xc4 {[%clk 0:00:18]}  Qb2 {[%clk 0:00:01]} 42. Bd4 {[%clk 0:00:18]}  Qa2 {[%clk 0:00:01]} 43. Rc6 {[%clk 0:00:16]}  Qd2 {[%clk 0:00:01]} 44. Bf2 {[%clk 0:00:14]}  a4 {[%clk 0:00:01]} 45. Ra1 {[%clk 0:00:14]}  Qb2 {[%clk 0:00:01]} 46. Rcc1 {[%clk 0:00:11]}  a3 {[%clk 0:00:02]} 47. Be1 {[%clk 0:00:11]}  a2 {[%clk 0:00:02]} 48. Bc3 {[%clk 0:00:11]}  Qe2 {[%clk 0:00:02]} 49. Bd4 {[%clk 0:00:08]}  Qd2 {[%clk 0:00:01]} 50. Rd1 {[%clk 0:00:08]}  Qc2 {[%clk 0:00:01]} 51. Kf1 {[%clk 0:00:08]}  h5 {[%clk 0:00:02]} 52. Be3 {[%clk 0:00:09]}  f6 {[%clk 0:00:02]} 53. Rd2 {[%clk 0:00:09]}  Qb1+ {[%clk 0:00:02]} 54. Rd1 {[%clk 0:00:08]}  Qc2 {[%clk 0:00:02]} 55. Rdc1 {[%clk 0:00:05]}  Qb2 {[%clk 0:00:02]} 56. Bf2 {[%clk 0:00:04]}  h4 {[%clk 0:00:02]} 57. Re1 {[%clk 0:00:04]}  g5 {[%clk 0:00:02]} 58. h3 {[%clk 0:00:05]}  Kg6 {[%clk 0:00:02]} 59. Rad1 {[%clk 0:00:03]}  Kf7 {[%clk 0:00:02]} 60. Bd4 {[%clk 0:00:03]}  Qb5+ {[%clk 0:00:02]} 61. Re2 {[%clk 0:00:03]}  Qa4 {[%clk 0:00:02]} 62. Kf2 {[%clk 0:00:02]}  Qxd1 {[%clk 0:00:02]} 63. Rxa2 {[%clk 0:00:01]}  Qxd4+ {[%clk 0:00:02]} 64. Kf1 {[%clk 0:00:02]}  Qc4+ {[%clk 0:00:03]} 65. Re2 {[%clk 0:00:02]}  Kg6 {[%clk 0:00:04]} 66. Kf2 {[%clk 0:00:03]}  f5 {[%clk 0:00:04]} 67. Re1 {[%clk 0:00:04]}  Kf6 {[%clk 0:00:03]} 68. exf5 {[%clk 0:00:03]}  Qd4+ {[%clk 0:00:04]} 69. Kf1 {[%clk 0:00:03]}  Qd3+ {[%clk 0:00:04]} 70. Kf2 {[%clk 0:00:03]}  Qxd5 {[%clk 0:00:05]} 71. Re6+ {[%clk 0:00:04]}  Kxf5 {[%clk 0:00:05]} 72. Re4 {[%clk 0:00:05]}  Qxe4 {[%clk 0:00:05]} 73. fxe4+ {[%clk 0:00:05]}  Kxe4 {[%clk 0:00:06]} 74. Ke2 {[%clk 0:00:06]}  Kf4 {[%clk 0:00:06]} 0-1


[Site "https://www.chess.com"]

[Event "Titled Tuesday Blitz September 27 Early 2022"]
[White "Sahil, Tickoo"]
[Black "Salman, Pavel"]
[WhiteFideId "5019710"]
[BlackFideId "24153753"]
[WhiteElo "2047"]
[BlackElo "2039"]
[Result "0-1"]
[Round "03"]
[TimeControl "180+1"]
[Date "2022.09.27"]
[WhiteClock "0:00:04"]
[BlackClock "0:00:18"]

1. d4 {[%clk 0:03:00]}  Nf6 {[%clk 0:02:59]} 2. c4 {[%clk 0:02:56]}  c5 {[%clk 0:02:59]} 3. d5 {[%clk 0:02:55]}  b5 {[%clk 0:03:00]} 4. cxb5 {[%clk 0:02:55]}  a6 {[%clk 0:03:00]} 5. b6 {[%clk 0:02:52]}  e6 {[%clk 0:03:00]} 6. Nc3 {[%clk 0:02:51]}  Nxd5 {[%clk 0:03:00]} 7. Nxd5 {[%clk 0:02:51]}  exd5 {[%clk 0:03:01]} 8. Qxd5 {[%clk 0:02:51]}  Nc6 {[%clk 0:03:02]} 9. Nf3 {[%clk 0:02:46]}  Rb8 {[%clk 0:03:02]} 10. Qe4+ {[%clk 0:02:44]}  Be7 {[%clk 0:02:51]} 11. Bg5 {[%clk 0:02:41]}  O-O {[%clk 0:02:44]} 12. Bxe7 {[%clk 0:02:39]}  Nxe7 {[%clk 0:02:45]} 13. e3 {[%clk 0:02:33]}  Rxb6 {[%clk 0:02:44]} 14. b3 {[%clk 0:02:30]}  d5 {[%clk 0:02:42]} 15. Qc2 {[%clk 0:02:27]}  Bf5 {[%clk 0:02:39]} 16. Bd3 {[%clk 0:02:27]}  Bxd3 {[%clk 0:02:39]} 17. Qxd3 {[%clk 0:02:28]}  Rg6 {[%clk 0:02:37]} 18. O-O {[%clk 0:02:26]}  Qd6 {[%clk 0:02:36]} 19. Rfd1 {[%clk 0:02:23]}  h5 {[%clk 0:02:33]} 20. Rac1 {[%clk 0:02:21]}  Re8 {[%clk 0:02:30]} 21. Qc2 {[%clk 0:02:12]}  Qf6 {[%clk 0:02:29]} 22. Rd2 {[%clk 0:01:46]}  h4 {[%clk 0:02:19]} 23. Qd1 {[%clk 0:01:40]}  h3 {[%clk 0:02:16]} 24. g3 {[%clk 0:01:38]}  Nf5 {[%clk 0:01:59]} 25. Rxc5 {[%clk 0:01:21]}  Nd6 {[%clk 0:01:14]} 26. Rcxd5 {[%clk 0:01:10]}  Ne4 {[%clk 0:01:14]} 27. Rd8 {[%clk 0:01:08]}  Rxd8 {[%clk 0:01:10]} 28. Rxd8+ {[%clk 0:01:08]}  Kh7 {[%clk 0:01:11]} 29. Rd4 {[%clk 0:01:03]}  Nc3 {[%clk 0:00:51]} 30. Rh4+ {[%clk 0:00:18]}  Rh6 {[%clk 0:00:33]} 31. Qd3+ {[%clk 0:00:13]}  g6 {[%clk 0:00:30]} 32. Rxh6+ {[%clk 0:00:10]}  Kxh6 {[%clk 0:00:31]} 33. e4 {[%clk 0:00:08]}  Nxa2 {[%clk 0:00:20]} 34. Qe3+ {[%clk 0:00:09]}  Kg7 {[%clk 0:00:20]} 35. e5 {[%clk 0:00:09]}  Qf5 {[%clk 0:00:19]} 36. Qe1 {[%clk 0:00:04]}  Qxf3 {[%clk 0:00:18]} 0-1


[Site "https://www.chess.com"]

[Event "Titled Tuesday Blitz September 27 Early 2022"]
[White "Sala, Giulia"]
[Black "Devaev, Alexander"]
[WhiteFideId "2840451"]
[BlackFideId "4169395"]
[WhiteElo "1627"]
[BlackElo "2185"]
[Result "0-1"]
[Round "03"]
[TimeControl "180+1"]
[Date "2022.09.27"]
[WhiteClock "0:00:57"]
[BlackClock "0:01:16"]

1. f4 {[%clk 0:03:00]}  d5 {[%clk 0:02:49]} 2. Nf3 {[%clk 0:03:00]}  g6 {[%clk 0:02:49]} 3. g3 {[%clk 0:03:00]}  Bg7 {[%clk 0:02:49]} 4. Bg2 {[%clk 0:03:00]}  b6 {[%clk 0:02:50]} 5. O-O {[%clk 0:03:00]}  Bb7 {[%clk 0:02:51]} 6. d3 {[%clk 0:03:00]}  Nh6 {[%clk 0:02:51]} 7. Qe1 {[%clk 0:02:59]}  d4 {[%clk 0:02:49]} 8. e4 {[%clk 0:02:58]}  dxe3 {[%clk 0:02:49]} 9. Qxe3 {[%clk 0:02:58]}  O-O {[%clk 0:02:48]} 10. Nc3 {[%clk 0:02:57]}  Nd7 {[%clk 0:02:40]} 11. Kh1 {[%clk 0:02:54]}  c5 {[%clk 0:02:38]} 12. Bd2 {[%clk 0:02:44]}  Nf6 {[%clk 0:02:30]} 13. Rae1 {[%clk 0:02:42]}  Nf5 {[%clk 0:02:30]} 14. Qe2 {[%clk 0:02:41]}  Nd4 {[%clk 0:02:31]} 15. Nxd4 {[%clk 0:02:39]}  Bxg2+ {[%clk 0:02:31]} 16. Kxg2 {[%clk 0:02:38]}  cxd4 {[%clk 0:02:28]} 17. Ne4 {[%clk 0:02:38]}  Nd5 {[%clk 0:02:27]} 18. Nf2 {[%clk 0:02:30]}  Qd7 {[%clk 0:02:23]} 19. Qe4 {[%clk 0:02:29]}  e6 {[%clk 0:02:19]} 20. Ng4 {[%clk 0:02:28]}  f5 {[%clk 0:02:17]} 21. Ne5 {[%clk 0:02:24]}  fxe4 {[%clk 0:01:52]} 22. Nxd7 {[%clk 0:02:23]}  e3 {[%clk 0:01:52]} 23. Nxf8 {[%clk 0:02:02]}  exd2 {[%clk 0:01:51]} 24. Rd1 {[%clk 0:01:48]}  Ne3+ {[%clk 0:01:50]} 25. Kf2 {[%clk 0:01:47]}  Nxd1+ {[%clk 0:01:50]} 26. Rxd1 {[%clk 0:01:46]}  Kxf8 {[%clk 0:01:49]} 27. Rxd2 {[%clk 0:01:47]}  Rc8 {[%clk 0:01:50]} 28. Kf3 {[%clk 0:01:47]}  Ke7 {[%clk 0:01:49]} 29. Ke4 {[%clk 0:01:47]}  Kd6 {[%clk 0:01:50]} 30. Re2 {[%clk 0:01:44]}  Re8 {[%clk 0:01:40]} 31. g4 {[%clk 0:01:44]}  a5 {[%clk 0:01:29]} 32. h4 {[%clk 0:01:40]}  b5 {[%clk 0:01:29]} 33. Rh2 {[%clk 0:01:37]}  e5 {[%clk 0:01:23]} 34. f5 {[%clk 0:01:37]}  gxf5+ {[%clk 0:01:23]} 35. gxf5 {[%clk 0:01:36]}  Bf6 {[%clk 0:01:23]} 36. Rg2 {[%clk 0:01:26]}  Re7 {[%clk 0:01:17]} 37. h5 {[%clk 0:01:09]}  Rg7 {[%clk 0:01:18]} 38. Rh2 {[%clk 0:01:08]}  Rg4+ {[%clk 0:01:17]} 39. Kf3 {[%clk 0:01:07]}  Rf4+ {[%clk 0:01:18]} 40. Kg3 {[%clk 0:01:07]}  Rxf5 {[%clk 0:01:19]} 41. Kg4 {[%clk 0:01:06]}  Rf4+ {[%clk 0:01:18]} 42. Kg3 {[%clk 0:01:06]}  h6 {[%clk 0:01:19]} 43. Rg2 {[%clk 0:01:05]}  Bg5 {[%clk 0:01:19]} 44. Re2 {[%clk 0:01:04]}  Kd5 {[%clk 0:01:18]} 45. Kh3 {[%clk 0:01:04]}  b4 {[%clk 0:01:18]} 46. a3 {[%clk 0:01:02]}  Rf3+ {[%clk 0:01:18]} 47. Kg4 {[%clk 0:00:59]}  Rf4+ {[%clk 0:01:15]} 48. Kh3 {[%clk 0:00:59]}  bxa3 {[%clk 0:01:16]} 49. bxa3 {[%clk 0:00:57]}  Rh4+ {[%clk 0:01:16]} 50. Kg3 {[%clk 0:00:57]}  Rxh5 {[%clk 0:01:16]} 51. Rf2 {[%clk 0:00:57]}  Bh4+ {[%clk 0:01:16]} 52. Kg4 {[%clk 0:00:56]}  Bxf2 {[%clk 0:01:16]} 53. Kxh5 {[%clk 0:00:57]}  Be3 {[%clk 0:01:16]} 0-1


[Site "https://www.chess.com"]

[Event "Titled Tuesday Blitz September 27 Early 2022"]
[White "Samaganova, Aleksandra"]
[Black "Miszler, Levente"]
[WhiteFideId "13800221"]
[BlackFideId "763276"]
[WhiteElo "1864"]
[BlackElo "1966"]
[Result "0-1"]
[Round "03"]
[TimeControl "180+1"]
[Date "2022.09.27"]
[WhiteClock "0:00:08"]
[BlackClock "0:00:07"]

1. c4 {[%clk 0:03:00]}  e5 {[%clk 0:02:56]} 2. Nc3 {[%clk 0:02:57]}  Nc6 {[%clk 0:02:56]} 3. g3 {[%clk 0:02:51]}  f5 {[%clk 0:02:54]} 4. Bg2 {[%clk 0:02:51]}  Nf6 {[%clk 0:02:55]} 5. e3 {[%clk 0:02:51]}  g6 {[%clk 0:02:49]} 6. Nge2 {[%clk 0:02:51]}  Bg7 {[%clk 0:02:49]} 7. O-O {[%clk 0:02:51]}  O-O {[%clk 0:02:49]} 8. d4 {[%clk 0:02:50]}  e4 {[%clk 0:02:48]} 9. Rb1 {[%clk 0:02:50]}  d5 {[%clk 0:02:46]} 10. cxd5 {[%clk 0:02:31]}  Nxd5 {[%clk 0:02:44]} 11. Nxd5 {[%clk 0:02:32]}  Qxd5 {[%clk 0:02:43]} 12. Nc3 {[%clk 0:02:33]}  Qf7 {[%clk 0:02:36]} 13. b4 {[%clk 0:02:27]}  Be6 {[%clk 0:02:23]} 14. b5 {[%clk 0:01:57]}  Ne7 {[%clk 0:02:20]} 15. a4 {[%clk 0:01:51]}  Nd5 {[%clk 0:02:10]} 16. Qc2 {[%clk 0:01:46]}  g5 {[%clk 0:02:04]} 17. Ba3 {[%clk 0:01:44]}  Rfe8 {[%clk 0:02:03]} 18. Rbc1 {[%clk 0:01:37]}  Rac8 {[%clk 0:02:02]} 19. a5 {[%clk 0:01:29]}  c6 {[%clk 0:01:52]} 20. bxc6 {[%clk 0:01:22]}  Rxc6 {[%clk 0:01:53]} 21. Qb2 {[%clk 0:01:22]}  Rec8 {[%clk 0:01:34]} 22. Nb5 {[%clk 0:01:18]}  Qd7 {[%clk 0:00:48]} 23. Nxa7 {[%clk 0:01:01]}  Rxc1 {[%clk 0:00:48]} 24. Rxc1 {[%clk 0:01:02]}  Ra8 {[%clk 0:00:48]} 25. Nb5 {[%clk 0:00:57]}  Rxa5 {[%clk 0:00:47]} 26. Bf1 {[%clk 0:00:47]}  f4 {[%clk 0:00:42]} 27. exf4 {[%clk 0:00:44]}  gxf4 {[%clk 0:00:43]} 28. Nd6 {[%clk 0:00:40]}  e3 {[%clk 0:00:37]} 29. Rc8+ {[%clk 0:00:26]}  Bf8 {[%clk 0:00:29]} 30. Bb5 {[%clk 0:00:20]}  Qg7 {[%clk 0:00:18]} 31. Re8 {[%clk 0:00:13]}  fxg3 {[%clk 0:00:10]} 32. hxg3 {[%clk 0:00:13]}  Bh3 {[%clk 0:00:06]} 33. Rxf8+ {[%clk 0:00:03]}  Qxf8 {[%clk 0:00:06]} 34. Nc4 {[%clk 0:00:04]}  Rxa3 {[%clk 0:00:05]} 35. Nxa3 {[%clk 0:00:03]}  exf2+ {[%clk 0:00:05]} 36. Qxf2 {[%clk 0:00:04]}  Qxa3 {[%clk 0:00:04]} 37. Bc4 {[%clk 0:00:03]}  Qc1+ {[%clk 0:00:04]} 38. Bf1 {[%clk 0:00:02]}  Bxf1 {[%clk 0:00:03]} 39. Qxf1 {[%clk 0:00:02]}  Qxf1+ {[%clk 0:00:04]} 40. Kxf1 {[%clk 0:00:03]}  Kf7 {[%clk 0:00:04]} 41. Kf2 {[%clk 0:00:04]}  Ke6 {[%clk 0:00:05]} 42. Kf3 {[%clk 0:00:04]}  Kf5 {[%clk 0:00:05]} 43. g4+ {[%clk 0:00:04]}  Kg5 {[%clk 0:00:05]} 44. Ke4 {[%clk 0:00:05]}  Nf6+ {[%clk 0:00:06]} 45. Ke5 {[%clk 0:00:05]}  Nxg4+ {[%clk 0:00:06]} 46. Kd6 {[%clk 0:00:06]}  Ne3 {[%clk 0:00:06]} 47. Kc7 {[%clk 0:00:07]}  Kf4 {[%clk 0:00:06]} 48. Kxb7 {[%clk 0:00:08]}  Ke4 {[%clk 0:00:06]} 49. d5 {[%clk 0:00:08]}  Kxd5 {[%clk 0:00:07]} 0-1


[Site "https://www.chess.com"]

[Event "Titled Tuesday Blitz September 27 Early 2022"]
[White "Saya, Ethan"]
[Black "Derjabin, Ilja"]
[WhiteFideId "26095181"]
[BlackFideId "14104768"]
[WhiteElo "2162"]
[BlackElo "2341"]
[Result "0-1"]
[Round "03"]
[TimeControl "180+1"]
[Date "2022.09.27"]
[WhiteClock "0:01:51"]
[BlackClock "0:01:31"]

1. e4 {[%clk 0:03:00]}  c5 {[%clk 0:02:57]} 2. Nc3 {[%clk 0:02:57]}  g6 {[%clk 0:02:54]} 3. g3 {[%clk 0:02:57]}  Bg7 {[%clk 0:02:55]} 4. Bg2 {[%clk 0:02:57]}  Nc6 {[%clk 0:02:55]} 5. Nge2 {[%clk 0:02:58]}  e6 {[%clk 0:02:55]} 6. d3 {[%clk 0:02:58]}  Nge7 {[%clk 0:02:55]} 7. Be3 {[%clk 0:02:58]}  d6 {[%clk 0:02:55]} 8. Qd2 {[%clk 0:02:57]}  Rb8 {[%clk 0:02:51]} 9. d4 {[%clk 0:02:44]}  cxd4 {[%clk 0:02:48]} 10. Nxd4 {[%clk 0:02:45]}  O-O {[%clk 0:02:46]} 11. O-O {[%clk 0:02:42]}  a6 {[%clk 0:02:42]} 12. Nxc6 {[%clk 0:02:39]}  bxc6 {[%clk 0:02:40]} 13. Bh6 {[%clk 0:02:40]}  Bxh6 {[%clk 0:02:32]} 14. Qxh6 {[%clk 0:02:41]}  Rxb2 {[%clk 0:02:32]} 15. Rad1 {[%clk 0:02:34]}  Rxc2 {[%clk 0:02:29]} 16. Rd3 {[%clk 0:02:31]}  d5 {[%clk 0:02:21]} 17. Bh3 {[%clk 0:02:26]}  Qa5 {[%clk 0:02:03]} 18. exd5 {[%clk 0:02:19]}  Rxc3 {[%clk 0:01:54]} 19. d6 {[%clk 0:02:18]}  Rxd3 {[%clk 0:01:50]} 20. dxe7 {[%clk 0:02:18]}  Re8 {[%clk 0:01:49]} 21. Rb1 {[%clk 0:02:11]}  Qh5 {[%clk 0:01:45]} 22. Qf4 {[%clk 0:01:58]}  Qxh3 {[%clk 0:01:43]} 23. Qf6 {[%clk 0:01:57]}  Qf5 {[%clk 0:01:38]} 24. Qb2 {[%clk 0:01:52]}  Rxe7 {[%clk 0:01:35]} 25. h4 {[%clk 0:01:53]}  Red7 {[%clk 0:01:34]} 26. Kh2 {[%clk 0:01:52]}  Rd2 {[%clk 0:01:33]} 27. h5 {[%clk 0:01:50]}  Qxf2+ {[%clk 0:01:32]} 28. Kh3 {[%clk 0:01:50]}  Qg2+ {[%clk 0:01:31]} 29. Kg4 {[%clk 0:01:51]}  R7d4+ {[%clk 0:01:31]} 30. Kg5 {[%clk 0:01:51]}  Qxg3+ {[%clk 0:01:31]} 31. Kh6 {[%clk 0:01:51]}  Qf4# {[%clk 0:01:31]} 0-1


[Site "https://www.chess.com"]